Cogmind - Beta 9 @@@ ROGUE MODE // 2019.10.25 @ 21:53:26 Player: Henry Result: Destroyed by H-55 Commando with Gauss Rifle Performance ------------- Evolutions (3) 1500 Regions Visited (4) 800 Robots Destroyed (27) 135 Value Destroyed (722) 722 Prototype IDs (2) 40 Alien Tech Used (0) 0 Bonus (0) 0 TOTAL SCORE: 3197 Bonus ------- None Cogmind --------- Core Integrity 0/700 Matter 161/300 Energy 100/100 System Corruption 2% Temperature Cool (0) Location -7/Factory Parts ------- Power (1) Propulsion (5) Utility (4) Large Storage Unit Large Storage Unit Advanced Signal Interpreter Weapon (3) Mini Assault Cannon Inventory (16) Light Nuclear Core Reinforced Deuterium Engine Improved Heat Sink Recoil Stabilizer Improved Medium Armor Plating Improved Medium Armor Plating Improved Medium Armor Plating Ion Cannon Minigun Gauss Rifle Mini Assault Cannon Mini Assault Cannon Mini Assault Cannon Mini Assault Cannon Heavy Missile Launcher Peak State ------------ Power Light Nuclear Core Propulsion Aluminum Leg Aluminum Leg Aluminum Leg Aluminum Leg Carbon-fiber Leg Utility Large Storage Unit Large Storage Unit Advanced Signal Interpreter Improved Medium Armor Plating Weapon Precision Assault Rifle Mini Assault Cannon Mini Assault Cannon Inventory Deuterium Engine Light Nuclear Core Carbon-fiber Leg Improved Heat Sink Recoil Stabilizer Improved Medium Armor Plating Improved Medium Armor Plating Improved Medium Armor Plating Ion Cannon Minigun Gauss Rifle Mini Assault Cannon Mini Assault Cannon Mini Assault Cannon Mini Assault Cannon Heavy Missile Launcher [Rating: 40] Favorites ----------- Power Ion Engine Engine Ion Engine Power Core Light Nuclear Core Propulsion Aluminum Leg Leg Aluminum Leg Utility Large Storage Unit Device Recoil Stabilizer Storage Large Storage Unit Processor Advanced Signal Interpreter Protection Improved Medium Armor Plating Weapon Minigun Energy Gun Particle Gun Ballistic Gun Minigun Ballistic Cannon Mini Assault Cannon Launcher Grenade Launcher Slashing Weapon Mining Claw Build | -11 -10 -9 -8 -7 ------- Run | Scr Mat Mat Mat Fac Slots Evolved 6 | . . 2 2 2 Power . | . . . . . Propulsion 3 | . . 2 . 1 Utility 2 | . . . 1 1 Weapon 1 | . . . 1 . Parts Attached 39 | 6 3 7 14 9 Power 3 | 1 . . 1 1 Engine 2 | 1 . . 1 . Core 1 | . . . . 1 Reactor . | . . . . . Propulsion 12 | 2 1 2 5 2 Treads . | . . . . . Leg 12 | 2 1 2 5 2 Wheel . | . . . . . Hover . | . . . . . Flight . | . . . . . Utility 9 | 1 1 1 4 2 Device 1 | . . . 1 . Storage 5 | 1 1 1 2 . Processor 1 | . . . 1 . Hackware . | . . . . . Protection 2 | . . . . 2 Artifact . | . . . . . Weapon 15 | 2 1 4 4 4 Energy Gun 2 | 1 1 . . . Energy Cannon . | . . . . . Ballistic Gun 7 | 1 . 3 2 1 Ballistic Cannon 3 | . . . . 3 Launcher 2 | . . 1 1 . Special Weapon . | . . . . . Impact Weapon . | . . . . . Slashing Weapon 1 | . . . 1 . Piercing Weapon . | . . . . . Special Melee Weapon . | . . . . . Unidentified Prototypes 2 | . . . . 2 Parts Lost 12 | . 1 . 1 10 Power 1 | . . . . 1 Propulsion 7 | . . . 1 6 Utility 1 | . . . . 1 Weapon 3 | . 1 . . 2 Highest Loss Streak 8 | . 1 . 1 8 Average Slot Usage (%) 90 | . 89 92 98 85 Engine 7 | . 14 11 9 3 Core 1 | . . . . 2 Leg 31 | . 28 37 35 28 Device 2 | . . . 8 . Storage 17 | . 19 22 18 15 Processor 2 | . . . . 7 Protection 2 | . . . . 5 Energy Gun 2 | . 12 2 . . Ballistic Gun 18 | . 14 18 26 14 Ballistic Cannon 2 | . . . . 5 Naked Turns . | . . . . . Heaviest Build 58 | 13 18 30 51 58 Greatest Support 55 | 20 20 40 50 55 Greatest Overweight (x) 2 | 2 . . 1 2 Average Overweight (x) . | . . . . . Largest Inventory Capacity 16 | 6 8 12 16 16 Average Capacity 12 | 5 6 8 12 16 Most Carried 16 | 3 8 8 12 16 Average Carried 10 | 1 4 7 11 14 Final Capacity 16 | . . . . 16 Final Carried 15 | . . . . 15 Class Distribution -------------------- 39% | Mutant 29% | Gunner 20% | Tank 10% | Scavenger-Tank Dominant Class ---------------- Mutant | -10/Materials Mutant | -9/Materials Gunner | -8/Materials Tank | -7/Factory Resources | -11 -10 -9 -8 -7 ----------- Run | Scr Mat Mat Mat Fac Matter Collected 1005 | 210 158 90 393 154 Remotely . | . . . . . Salvage Created 1055 | . 361 107 393 194 Parts 67 | . 23 12 19 13 Haulers Intercepted 2 | . . . 1 1 Recyclers Shooed 2 | . 2 . . . Parts Field Recycled . | . . . . . Retrieved Matter . | . . . . . Parts Self-Destructed . | . . . . . Prevented . | . . . . . Kills | -11 -10 -9 -8 -7 ------- Run | Scr Mat Mat Mat Fac Combat Hostiles Destroyed 19 | . 6 5 5 3 Guns 16 | . 6 3 5 2 Cannons 1 | . . . . 1 AOE 2 | . . 2 . . Classes Destroyed 10 | . 4 1 3 2 Worker 1 | . 1 . . . Hauler 2 | . . . 1 1 Recycler 3 | . 2 . 1 . Operator 1 | . . . . 1 Watcher 1 | . . 1 . . Swarmer 6 | . 3 3 . . Grunt 6 | . 3 2 1 . Sentry 4 | . . . 3 1 Hunter 2 | . . . 1 1 Programmer 1 | . . . . 1 Best Kill Streak 6 | . 5 6 4 1 Combat Bots Only 5 | . 3 5 1 1 Max Kills in Single Turn 2 | . 1 2 1 1 Gunslinging . | . . . . . Exploded 1 | . . 1 . . Melee . | . . . . . Uniques/NPCs Destroyed . | . . . . . Combat | -11 -10 -9 -8 -7 -------- Run | Scr Mat Mat Mat Fac Damage Taken 3064 | . 249 59 443 2313 Core 807 | . 66 10 14 717 Absorbed by Shields . | . . . . . Core Remaining (%) 91 | 100 73 97 97 . Volleys Fired 87 | . 32 9 31 15 Largest 3 | . 2 2 3 3 Hottest 124 | . 85 55 80 124 Shots Fired 208 | . 52 18 93 45 Gun 193 | . 52 16 92 33 Cannon 12 | . . . . 12 Launcher 3 | . . 2 1 . Special . | . . . . . Kinetic 185 | . 32 16 92 45 Thermal 6 | . 6 . . . Explosive 3 | . . 2 1 . Electromagnetic 14 | . 14 . . . Robot Hit Streak 12 | . 7 7 5 12 Robot Miss Streak 4 | . 3 2 4 2 Penetration Max . | . . . . . Secondary Targets . | . . . . . Shots Hit Robots 118 | . 30 11 48 29 Core Hits 51 | . 13 9 15 14 Critical Hits . | . . . . . Critical Kills . | . . . . . Critical Parts Destroyed . | . . . . . Melee Attacks . | . . . . . Impact . | . . . . . Slashing . | . . . . . Piercing . | . . . . . Sneak Attacks . | . . . . . Combat Hostiles . | . . . . . Follow-up Attacks . | . . . . . Damage Inflicted 2111 | . 462 416 710 523 Guns 1681 | . 462 173 710 336 Cannons 158 | . . . . 158 Explosions 243 | . . 243 . . Melee . | . . . . . Ramming 29 | . . . . 29 Kinetic 1651 | . 274 173 710 494 Thermal 96 | . 96 . . . Explosive 243 | . . 243 . . Electromagnetic 92 | . 92 . . . Impact . | . . . . . Slashing . | . . . . . Piercing . | . . . . . Highest Corruption 2 | . . . . 2 Average Corruption 2 | . . . . 2 Corruption Purged . | . . . . . Overload Shots . | . . . . . Overflow Damage 24 | . . . . 24 Projectiles 24 | . . . . 24 Explosions . | . . . . . Melee . | . . . . . Knockbacks 2 | . . . . 2 Impact . | . . . . . Kinetic 2 | . . . . 2 Secondary . | . . . . . Self-Inflicted Damage 5 | . . . . 5 Shots . | . . . . . Rammed 29 | . . . . 29 Targets Rammed 32 | . . . . 32 Kicked 3 | . . . . 3 Crushed . | . . . . . Highest Temperature 204 | . 96 16 65 204 Average Temperature 32 | . 38 7 17 48 Received Heat Transfer 498 | . 99 12 108 279 Siege Activations . | . . . . . Robots Corrupted . | . . . . . Combat Hostiles . | . . . . . Parts Fried . | . . . . . Impact Corruptions . | . . . . . Robots Melted . | . . . . . Combat Hostiles . | . . . . . Parts Melted . | . . . . . Heat Transferred 222 | . 222 . . . Parts Sabotaged . | . . . . . Parts Stolen . | . . . . . Parts Stripped . | . . . . . Power Chain Reactions . | . . . . . Missiles Intercepted . | . . . . . Alert | -11 -10 -9 -8 -7 ------- Run | Scr Mat Mat Mat Fac Peak Influence 271 | . 200 211 271 140 Average Influence 113 | . 132 158 193 49 Maximum Alert Level 1 | . 1 1 1 . Low Security (%) 74 | . . . . . Level 1 25 | . . . . . Level 2 . | . . . . . Level 3 . | . . . . . Level 4 . | . . . . . Level 5 . | . . . . . High Security . | . . . . . Max Security . | . . . . . Squads Dispatched 9 | . 1 1 4 3 Investigation 2 | . . . 1 1 Extermination 2 | . . . . 2 Reinforcement 2 | . 1 1 . . Assault . | . . . . . Garrison 3 | . . . 3 . Intercept . | . . . . . Construction Impeded . | . . . . . Haulers Reinforced . | . . . . . Stealth | -11 -10 -9 -8 -7 --------- Run | Scr Mat Mat Mat Fac Distress Signals 5 | . 2 . 3 . Communications Jammed . | . . . . . Distress Signals . | . . . . . Times Spotted 35 | . 12 7 9 7 Peak Tracking Total 5 | . 4 5 4 3 Tactical Retreats 1 | . . . 1 . Traps | -11 -10 -9 -8 -7 ------- Run | Scr Mat Mat Mat Fac Traps Triggered 2 | . . . 1 1 Indirectly . | . . . . . Trap Hack Attempts . | . . . . . Triggered . | . . . . . Disarmed . | . . . . . Reprogrammed . | . . . . . Reused . | . . . . . Traps Extracted . | . . . . . Installed . | . . . . . Triggered . | . . . . . Machines | -11 -10 -9 -8 -7 ---------- Run | Scr Mat Mat Mat Fac Machines Disabled 1 | . 1 . . . Max in Single Turn 1 | . 1 . . . Machines Sabotaged . | . . . . . Garrisons Compromised . | . . . . . Overloaded Fab Kills . | . . . . . Fab Network Shutdowns . | . . . . . Hacking | -11 -10 -9 -8 -7 --------- Run | Scr Mat Mat Mat Fac Machines Accessed 1 | . . . 1 . Terminals . | . . . . . Fabricators . | . . . . . Repair Stations . | . . . . . Recycling Units . | . . . . . Scanalyzers 1 | . . . 1 . Garrison Access . | . . . . . Total Hacks 2 | . . . 2 . Successful 2 | . . . 2 . Failed . | . . . . . Catastrophic . | . . . . . Database Lockouts . | . . . . . Manual . | . . . . . Terminals . | . . . . . Fabricators . | . . . . . Repair Stations . | . . . . . Recycling Units . | . . . . . Scanalyzers 2 | . . . 2 . Garrison Access . | . . . . . Terminal Hacks . | . . . . . Fabricator Hacks . | . . . . . Repair Station Hacks . | . . . . . Recycling Unit Hacks . | . . . . . Scanalyzer 2 | . . . 2 . Insert Component 1 | . . . 1 . Analyze 1 | . . . 1 . Garrison Access Hacks . | . . . . . Unauthorized Hacks . | . . . . . Terminals . | . . . . . Fabricators . | . . . . . Repair Stations . | . . . . . Recycling Units . | . . . . . Scanalyzers . | . . . . . Garrison Access . | . . . . . Data Cores Recovered 1 | . . . . 1 Used . | . . . . . Hacking Detections . | . . . . . Full Trace Events . | . . . . . Feedback Events . | . . . . . Feedback Blocked . | . . . . . Robot Schematics Acquired . | . . . . . Robots Built . | . . . . . Matter . | . . . . . Time . | . . . . . Total Robot Build Rating . | . . . . . Part Schematics Acquired 1 | . . . 1 . Parts Built . | . . . . . Matter . | . . . . . Time . | . . . . . Total Part Build Rating . | . . . . . Parts Repaired . | . . . . . Time . | . . . . . Parts Recycled . | . . . . . Recycled Matter . | . . . . . Retrieved Matter . | . . . . . Retrieved Components . | . . . . . Parts Scanalyzed 1 | . . . 1 . Part Schematics Acquired 1 | . . . 1 . Parts Damaged 1 | . . . 1 . Bothacking | -11 -10 -9 -8 -7 ------------ Run | Scr Mat Mat Mat Fac Used RIF Installer . | . . . . . Robots Hacked . | . . . . . Non-combat . | . . . . . Combat . | . . . . . Robot Hacks Applied . | . . . . . Relay Couplers Released . | . . . . . Robots Rewired . | . . . . . Allies Hacked . | . . . . . Hacks Repelled . | . . . . . Allies | -11 -10 -9 -8 -7 -------- Run | Scr Mat Mat Mat Fac Total Allies . | . . . . . Largest Group . | . . . . . Highest-Rated Group . | . . . . . Highest-Rated Ally . | . . . . . Total Orders . | . . . . . Ally Attacks . | . . . . . Total Damage . | . . . . . Kills . | . . . . . Allies Corrupted . | . . . . . Allies Melted . | . . . . . Intel | -11 -10 -9 -8 -7 ------- Run | Scr Mat Mat Mat Fac Robot Analysis Total . | . . . . . Derelict Logs Recovered . | . . . . . Drone Launches . | . . . . . Drone Recoveries . | . . . . . Exploration | -11 -10 -9 -8 -7 ------------- Run | Scr Mat Mat Mat Fac Turns Passed 1934 | 57 378 188 523 788 Spaces Moved 1076 | 37 232 116 323 368 Core 11 | 11 . . . . Treads . | . . . . . Legs 1065 | 26 232 116 323 368 Wheels . | . . . . . Hover . | . . . . . Flight . | . . . . . Fastest Speed 50 | 50 120 120 120 120 Average Speed 129 | 125 120 120 124 141 Slowest Speed 180 | 150 120 120 150 180 Overloaded Moves . | . . . . . Propulsion Burnouts . | . . . . . Robots Hopped . | . . . . . Cave-ins Triggered . | . . . . . Exploration Rate (%) 22 | 3 53 15 28 12 Regions Visited 4 Branch Regions . Pre-discovered Areas . | . . . . . Known Exits Taken 1 | . . . 1 . Unknown Exits Taken 3 | 1 1 1 . . Scrap Searched . | . . . . . Spaces Dug 7 | . . . 7 . Terrain Destroyed 22 | . . 15 7 . Melee . | . . . . . Projectile . | . . . . . AOE 22 | . . 15 7 . Actions | -11 -10 -9 -8 -7 --------- Run | Scr Mat Mat Mat Fac Total 1323 | 45 278 152 390 458 Wait 19 | . 7 6 . 6 Move 1072 | 36 231 115 322 368 Hop . | . . . . . Pick Up 37 | 3 5 7 9 13 Fast Attach 16 | 5 2 1 2 6 Attach 17 | 1 . 5 8 3 Detach 9 | . . 1 5 3 Swap 6 | . 1 1 4 . Drop 28 | . . 7 9 12 Fire 87 | . 32 9 31 15 Melee . | . . . . . Ram 25 | . . . . 25 Kick 7 | . . . . 7 Crush . | . . . . . Escape Stasis . | . . . . . Rewire . | . . . . . Trap . | . . . . . Miscellaneous . | . . . . . Route ------- -11/Scrapyard -10/Materials -9/Materials -8/Materials -7/Factory (discovered 1 exit: *Low) History --------- Turn | Location | Event 16 | -11/Scrapyard | Discovered new exit (range 16) 58 | -11/Scrapyard | Entered Materials 309 | -10/Materials | Build established: Mutant 336 | -10/Materials | Discovered new exit (range 16) 436 | -10/Materials | Entered another Materials area 436 | -9/Materials | Evolved 2 slots: Propulsion x2 583 | -9/Materials | Discovered new exit (range 16) 624 | -9/Materials | Entered another Materials area 624 | -8/Materials | Evolved 2 slots: Utility x1, Weapon x1 702 | -8/Materials | Garrison activated, responded to threat 914 | -8/Materials | Build established: Gunner 1120 | -8/Materials | Discovered new exit (range 5) 1147 | -8/Materials | Identified exit to Factory 1147 | -8/Materials | Entered Factory 1147 | -7/Factory | Evolved 2 slots: Propulsion x1, Utility x1 1272 | -7/Factory | Discovered new exit (range 12) 1287 | -7/Factory | Identified exit to Lower Caves 1814 | -7/Factory | Lost 8 parts (1p5n1u1w) 1815 | -7/Factory | Core integrity fell below 50% 1886 | -7/Factory | Core integrity fell below 20% 1935 | -7/Factory | Destroyed by H-55 Commando with Gauss Rifle Last Messages --------------- 01883_ Mni. Assault Cannon permanently disabled. 01885_ Penetrated by Slug. 01890_ Slammed into H-55 Commando. 01891_ Penetrated by Slug. 01896_ Mni. Assault Cannon destroyed. 01897_ ALERT: Rogue bot located, Programmers report to Factory Zone 3I. 01897_ Slammed into H-55 Commando. 01902_ Penetrated by Slug. 01903_ Slammed into H-55 Commando. 01909_ Destabilizing: System interference. 01909_ Adv. Signal Interpreter temporarily disabled. 01913_ Penetrated by Slug. 01915_ Slammed into H-55 Commando. 01923_ K-01 Serf cleans the Neutrino Reactor. 01924_ Penetrated by Slug. 01927_ Slammed into H-55 Commando. 01927_ K-01 Serf cleans the Neutrino Reactor. 01933_ Slammed into H-55 Commando. 01933_ Destabilizing: System corrupted (+2). 01935_ Penetrated by Slug. Map ----- +----------------------------------------------------+ | ??????????# #?????????+ """ #??????? | | ??????????# #?????????## """ ####???? | | ?????????? ??????????#%* #???? | | ??????????? ??????????# """ #???? | | ???????????? ???????????# "%" #???? | | ??????????????????????????# %%" #???? | | ??????????????????????????# ! !! #???? | | ??????????????????????????# !! #???? | | ??????????????????????????# !! #???? | | ??????????????????????????# [! #???? | | ??????????????????????????# !! !/ #???? | | ??????????????????????????# ! ! #???? | | ??????????????????????????# #???? | | ??????????????????????????#% #???? | | ??????????????????????????#!#### ##########???? | | ??????????????????????????# #??# #????????????? | | ??????????????????????????# #??# #????????????? | | ??????????????????????????# #??# #????????????? | | ??????????????????????????# #??? #????????????? | | ??????????????????????????# #??? ????????????? | | ??????????????????????????# #???##????????????? | | ??????????????????????????# #?????????????????? | | ??????????????????????????# #?????????????????? | | ????????????????????????###+##########????????? | | ????????????????????????# ! #????????? | | ????????????????????????#@h #????????? | | ????????????????????????# !#????????? | | ????????????????????????# #????????? | | ????????????????????????# """ """ #????????? | | ????????????????????????# """ """ #????????? | | ??????????????????????? + """ """ #????????? | | ?????????????????????? # #????????? | | ????????????????????? # """ """ #????????? | | ????????????????????"" ?# """ """ #????????? | | ???????????????????"""??# """ ""? ?????????? | | ????????????????????""??# k???????????????? | | ????????????????????????#######???????????????? | | ??????????????????????????????????????????????? | | ??????????????????????????????????????????????? | | ??????????????????????????????????????????????? | | ??????????????????????????????????????????????? | | ??????????????????????????????????????????????? | | ??????????????????????????????????????????????? | | ??????????????????????????????????????????????? | | ??????????????????????????????????????????????? | | ??????????????????????????????????????????????? | | ??????????????????????????????????????????????? | | ??????????????????????????????????????????????? | | ??????????????????????????????????????????????? | | ??????????????????????????????????????????????? | +----------------------------------------------------+ Best States ------------- Heat Dissipation 34 Energy Generation 14 Energy Capacity 275 Matter Stores 300 Matter Capacity 300 Sight Range 16 Terrain Scan Density 10 Armor Coverage 225 Evasion (%) 40 Recoil Reduction 2 Item Schematics ----------------- Carbon-fiber Leg | -8/Materials | Scanalyzed Robot Schematics ------------------ None Fabricated ------------ Nothing Alien Tech Used ----------------- None Achievements -------------- None Challenges ------------ None Game ------ Seed HoverMachineTorch Manual? 0 Play Time 00:21:42 Cumulative 401.0 hours Start 2019.10.25 @ 21:31:33 End 2019.10.25 @ 21:53:26 Sessions 1 Manual Loads 0 Difficulty Rogue Special Mode None Game No. 78 Rogue 78 Adventurer 0 Explorer 0 Win Type - Total 0 Types 0/0/0/0/0/0/0 Lore% 17 Gallery% 42 Achievement% 16 Wizard Run 0 Options --------- ASCII 0 Keyboard 1 Movement Numpad Keybinds 0 Fullscreen 2 Font 18/X11Bold Map View 76x50 Tactical HUD 1 Map Filters NONE Filters NONE Steam 1 RUN: fbde2527-af9e-4160-a0f2-4e82d9ea77b5